bitfinex/quotes_SOLUSD_20251201
["timestamp","ask_amount","ask_price","bid_price","bid_amount"]
[1764559414092,12.0067847,127.28,127.25,12.42358573]
[1764559414398,12.0067847,127.28,127.26,12.42358573]
[1764559415299,0.65,127.27,127.25,12.42358573]
[1764559416301,8.50759893,127.27,127.25,12.42358573]
[1764559416978,13.07358573,127.26,127.22,12.42358573]
[1764559417189,3.5,127.25,127.22,12.42358573]
[1764559417503,4.15,127.25,127.23,12.42358573]
[1764559417694,0.65,127.25,127.23,12.42358573]
[1764559417997,4.15,127.25,127.23,12.42358573]
[1764559418196,4.15,127.25,127.22,12.42358573]
[1764559418396,0.65,127.24,127.22,12.42358573]
[1764559418701,0.65,127.24,127.23,12.42358573]
[1764559419372,0.65,127.24,127.22,12.42358573]
[1764559419978,0.65,127.24,127.2,27.91548673]
[1764559420184,11.35861063,127.25,127.23,12.42358573]
[1764559420494,12.00861063,127.25,127.23,12.42358573]
[1764559421477,7.85861063,127.25,127.24,12.42358573]
[1764559422323,12.00751265,127.27,127.24,12.42358573]
[1764559422483,7.95633885,127.29,127.26,12.42358573]
[1764559422685,0.65,127.28,127.27,12.42358573]
[1764559422987,12.10633885,127.29,127.27,12.42358573]
[1764559423188,11.45633885,127.29,127.28,12.42358573]
[1764559423388,0.1,127.29,127.28,12.42358573]
[1764559424503,0.1,127.29,127.28,7.90787822]
[1764559426608,0.1,127.29,127.28,16.16457212]
[1764559428510,0.1,127.29,127.28,11.10233235]
[1764559428683,0.1,127.29,127.28,19.91227727]
[1764559429792,0.1,127.3,127.28,19.91227727]
[1764559430014,0.1,127.3,127.29,3.24563845]
[1764559431431,0.1,127.3,127.29,12.05558337]
[1764559431992,0.1,127.3,127.29,19.91166004]
[1764559434012,0.1,127.3,127.29,2.84563845]
[1764559435715,0.1,127.3,127.29,10.70171512]
[1764559435911,0.1,127.3,127.29,2.84563845]
[1764559436217,0.1,127.3,127.29,10.70171512]
[1764559436411,0.1,127.3,127.29,15.76085568]
[1764559437505,0.79,127.3,127.26,3.5]
[1764559437703,0.79,127.3,127.26,11.35777599]
[1764559437905,0.79,127.3,127.28,7.90477901]
[1764559438309,0.1,127.3,127.29,7.90477901]
[1764559438816,0.79,127.3,127.29,7.90477901]
[1764559439908,0.79,127.3,127.28,7.90477901]
[1764559440422,0.79,127.3,127.29,7.90477901]
[1764559443726,8.64562311,127.3,127.27,7.85674164]
[1764559443908,8.64562311,127.3,127.26,7.90477901]
[1764559444108,0.69,127.29,127.26,7.90477901]
[1764559444732,24.21364301,127.27,127.17,19.73685301]
[1764559444912,7.90477901,127.25,127.21,7.90477901]
[1764559445111,12.09477901,127.26,127.22,7.90477901]
[1764559445327,0.69,127.25,127.22,7.90477901]
[1764559445831,7.85916378,127.24,127.2,7.90477901]
[1764559446023,7.85916378,127.24,127.21,7.90477901]
[1764559446224,0.69,127.23,127.21,7.90477901]
[1764559446808,0.69,127.23,127.19,7.86225332]
[1764559447012,0.69,127.23,127.2,7.90477901]
[1764559447616,0.69,127.23,127.19,15.76703233]
[1764559447832,15.76559995,127.22,127.17,15.76774679]
[1764559448132,7.90477901,127.21,127.17,7.86296778]
[1764559448333,8.59477901,127.21,127.17,15.76774679]
[1764559448632,8.59477901,127.2,127.16,8.06395812]
[1764559448817,0.69,127.19,127.16,8.06395812]
[1764559449021,7.90477901,127.18,127.16,0.2]
[1764559449226,0.69,127.19,127.16,0.2]
[1764559449422,0.69,127.18,127.16,0.2]
[1764559449912,8.55337695,127.18,127.16,0.2]
[1764559450413,0.69,127.17,127.16,0.2]
[1764559453433,16.308864,127.21,127.16,8.10477901]
[1764559453632,7.90477901,127.19,127.16,0.2]
[1764559453835,4.19,127.2,127.16,0.2]
[1764559454012,0.69,127.19,127.16,0.2]
[1764559454423,8.59477901,127.19,127.16,0.2]
[1764559454835,0.69,127.18,127.16,8.10477901]
[1764559455215,3.5,127.2,127.17,7.90477901]
[1764559455414,4.19,127.2,127.16,8.0640505]
[1764559455712,4.19,127.2,127.18,7.90477901]
[1764559456320,0.69,127.19,127.18,7.90477901]
[1764559457022,3.5,127.2,127.18,7.90477901]
[1764559457224,4.19,127.2,127.18,7.90477901]
[1764559458340,4.19,127.2,127.18,2.85136843]
[1764559459336,0.69,127.19,127.18,2.85136843]
[1764559459637,0.69,127.19,127.17,2.85136843]
[1764559461639,0.69,127.19,127.16,8.06391942]
[1764559461836,0.69,127.19,127.18,2.85136843]
[1764559462034,0.69,127.19,127.16,8.06391942]
[1764559462233,0.69,127.19,127.17,2.85136843]
[1764559462540,0.69,127.19,127.18,2.85136843]
[1764559464945,0.69,127.19,127.17,2.85136843]
[1764559467147,0.69,127.19,127.16,8.06391942]
[1764559467337,11.40374739,127.19,127.16,0.2]
[1764559467536,2.85136843,127.18,127.16,0.2]
[1764559467737,3.5,127.17,127.16,0.2]
[1764559468048,4.18,127.18,127.16,3.05136843]
[1764559468422,4.18,127.18,127.16,0.2]
[1764559468423,0.68,127.17,127.16,0.2]
[1764559469343,0.68,127.17,127.16,3.05136843]
[1764559469537,0.68,127.17,127.16,0.2]
[1764559470249,8.54348981,127.17,127.16,0.2]
[1764559470433,12.04348981,127.17,127.16,0.2]
[1764559471037,3.5,127.17,127.16,0.2]
[1764559471354,50.86244678,127.17,127.11,7.86665265]
[1764559471563,7.03136843,127.16,127.12,2.85136843]
[1764559471932,0.68,127.15,127.12,2.85136843]
[1764559472545,8.54509259,127.15,127.12,2.85136843]
[1764559472933,0.68,127.14,127.11,10.71802108]
[1764559474337,8.54545236,127.14,127.1,2.85136843]
[1764559474951,0.68,127.13,127.1,2.85136843]
[1764559475546,0.68,127.13,127.11,2.85136843]
[1764559475747,4.18,127.15,127.12,2.85136843]
[1764559475941,0.68,127.14,127.12,2.85136843]
[1764559476955,3.5,127.15,127.13,2.85136843]
[1764559477258,4.18,127.15,127.12,2.85136843]
[1764559477756,4.18,127.16,127.12,11.31750082]
[1764559478064,0.68,127.16,127.13,2.85136843]
[1764559479135,3.53136843,127.16,127.09,16.67795484]
[1764559479344,3.53136843,127.16,127.12,2.85136843]
[1764559479650,0.68,127.15,127.12,2.85136843]
[1764559480039,11.39615105,127.15,127.12,61.5]
[1764559480337,3.5,127.14,127.12,61.5]
[1764559480541,4.18,127.14,127.12,61.5]
[1764559480746,0.68,127.13,127.12,61.5]
[1764559483356,7.86572337,127.14,127.12,61.5]
[1764559483547,11.36572337,127.14,127.12,64.35136843]
[1764559483755,12.04572337,127.14,127.12,64.35136843]
[1764559484064,12.04572337,127.14,127.12,61.5]
[1764559485366,0.68,127.13,127.12,61.5]
[1764559485571,8.54572337,127.14,127.12,61.5]
[1764559486467,3.5,127.15,127.13,4.45850369]
[1764559489162,16.308864,127.17,127.14,5.05850369]
[1764559489163,7.86348981,127.17,127.14,5.05850369]
[1764559489471,11.36348981,127.17,127.15,4.45850369]
[1764559489767,11.36348981,127.17,127.14,66.55850369]
[1764559489966,12.04348981,127.17,127.14,65.95850369]
[1764559490173,4.18,127.17,127.14,65.95850369]
[1764559490468,4.18,127.17,127.14,66.55850369]
[1764559490675,3.5,127.17,127.14,66.55850369]
[1764559490875,4.18,127.17,127.14,65.95850369]
[1764559491371,0.68,127.16,127.14,61.5]
[1764559491573,0.68,127.16,127.14,65.95850369]
[1764559491879,12.04359079,127.17,127.14,65.95850369]
[1764559492371,4.18,127.17,127.14,65.95850369]
[1764559492573,11.36351037,127.17,127.14,61.5]
[1764559492872,4.18,127.17,127.14,61.5]
[1764559493072,4.18,127.17,127.14,73.82383935]
[1764559495366,12.04358129,127.17,127.14,73.82383935]
[1764559495751,4.18,127.17,127.14,73.82383935]
[1764559498175,7.86243821,127.19,127.15,4.45850369]
[1764559498366,0.71,127.19,127.16,4.45850369]
[1764559498554,4.45850369,127.26,127.18,4.45850369]
[1764559498555,4.45850369,127.23,127.18,4.45850369]
[1764559498758,4.21,127.22,127.18,65.95850369]
[1764559498996,7.85930198,127.24,127.2,4.45850369]
[1764559499261,12.06930198,127.24,127.2,4.45850369]
[1764559499471,0.71,127.23,127.2,4.45850369]
[1764559499676,0.71,127.23,127.19,4.45850369]
[1764559500070,8.57037191,127.23,127.19,4.45850369]
[1764559500265,0.71,127.22,127.19,4.45850369]
[1764559501178,8.57075545,127.22,127.19,4.45850369]
[1764559501575,0.71,127.21,127.19,4.45850369]
[1764559501776,0.71,127.21,127.18,4.45850369]
[1764559501971,4.21,127.21,127.18,4.45850369]
[1764559502674,4.21,127.21,127.19,4.45850369]
[1764559502877,12.07132256,127.21,127.18,4.45850369]
[1764559504966,0.71,127.2,127.18,4.45850369]
[1764559505172,0.71,127.2,127.18,65.95850369]
[1764559505380,8.57184406,127.2,127.18,61.5]
[1764559505790,3.5,127.21,127.18,62.1]
[1764559506074,4.21,127.21,127.19,4.45850369]
[1764559506280,0.71,127.24,127.2,4.45850369]
[1764559506505,4.21,127.24,127.22,4.45850369]
[1764559506864,20.76736769,127.27,127.22,4.45850369]
[1764559506865,0.71,127.27,127.23,4.45850369]
[1764559507083,0.1,127.29,127.26,4.45850369]
[1764559507267,12.16610205,127.29,127.26,4.45850369]
[1764559507480,12.16610205,127.29,127.25,4.45850369]
[1764559507792,0.71,127.28,127.25,4.45850369]
[1764559508400,5.16850369,127.28,127.24,7.85892126]
[1764559508776,11.45610205,127.29,127.24,7.85892126]
[1764559508777,0.71,127.27,127.24,7.85892126]
[1764559508987,0.71,127.27,127.24,4.45850369]
[1764559509368,0.71,127.27,127.23,7.85953218]
[1764559509369,0.71,127.27,127.23,12.31803587]
[1764559509565,0.71,127.27,127.24,4.45850369]
[1764559509791,4.21,127.27,127.24,4.45850369]
[1764559510486,7.85725677,127.28,127.25,4.45850369]
[1764559510487,3.5,127.28,127.25,4.45850369]
[1764559510678,4.21,127.28,127.25,4.45850369]
[1764559511578,0.1,127.29,127.27,4.45850369]
[1764559511782,0.1,127.29,127.28,4.45850369]
[1764559512294,0.1,127.29,127.28,5.05850369]
[1764559512778,0.1,127.29,127.27,4.45850369]
[1764559512980,0.1,127.29,127.26,0.6]
[1764559513181,0.1,127.29,127.26,5.05850369]
[1764559513374,0.81,127.29,127.24,27.667578]
[1764559513574,0.81,127.29,127.24,28.62608169]
[1764559513780,0.81,127.29,127.25,4.45850369]
[1764559513974,8.66611006,127.29,127.25,4.45850369]
[1764559514174,8.66611006,127.29,127.25,5.05850369]
[1764559514175,0.81,127.29,127.25,5.05850369]
[1764559514374,0.81,127.29,127.24,43.81548746]
[1764559514375,0.1,127.29,127.27,4.45850369]
[1764559515398,0.1,127.29,127.28,7.8566939]
[1764559515582,0.1,127.29,127.27,12.91560181]
[1764559515969,0.1,127.29,127.27,12.31560181]
[1764559516170,0.1,127.29,127.26,7.85768064]
[1764559516393,0.81,127.29,127.26,7.85768064]
[1764559516982,4.45850369,127.28,127.24,16.308864]
[1764559517197,4.45850369,127.27,127.24,61.5]
[1764559517381,5.16850369,127.27,127.24,61.5]
[1764559517585,0.71,127.26,127.24,61.5]
[1764559521088,8.56792292,127.27,127.24,61.5]
[1764559521280,0.71,127.26,127.24,61.5]
[1764559522403,12.40164242,127.25,127.24,61.5]
[1764559522583,20.97004895,127.26,127.22,69.36023883]
[1764559522789,0.71,127.25,127.22,69.36023883]
[1764559523097,7.85840653,127.26,127.22,82.36188125]
[1764559523305,8.56840653,127.26,127.22,82.36188125]
[1764559523900,17.118864,127.29,127.23,13.00164242]
[1764559524099,0.71,127.28,127.24,12.40164242]
[1764559524476,13.11164242,127.28,127.23,73.90164242]
[1764559524679,13.11164242,127.28,127.23,74.50164242]
[1764559524991,0.67,127.27,127.24,8.45916378]
[1764559525182,0.67,127.27,127.24,7.85916378]
[1764559526497,0.1,127.29,127.26,12.40164242]
[1764559526680,0.1,127.29,127.27,12.40164242]
[1764559526992,0.78,127.29,127.26,7.85792865]
[1764559527200,0.1,127.29,127.26,20.25957107]
[1764559527384,0.1,127.29,127.26,20.85957107]
[1764559528708,0.78,127.29,127.26,20.25957107]
[1764559528913,0.78,127.29,127.26,7.85792865]
[1764559529275,0.1,127.29,127.26,8.45792865]
[1764559529497,0.1,127.29,127.26,20.85957107]
[1764559530309,0.78,127.29,127.26,8.45792865]
[1764559531009,0.1,127.29,127.26,8.45792865]
[1764559531509,0.1,127.29,127.26,69.95792865]
[1764559532284,0.78,127.29,127.26,69.95792865]
[1764559533187,0.78,127.29,127.26,69.35792865]
[1764559533389,0.78,127.29,127.26,69.95792865]
[1764559533681,0.1,127.29,127.26,69.95792865]
[1764559534588,0.78,127.29,127.26,69.35792865]
[1764559535901,21.03778513,127.29,127.26,61.5]
[1764559536286,0.68,127.28,127.26,61.5]
[1764559538391,7.95160306,127.27,127.26,61.5]
[1764559538720,7.95160306,127.27,127.22,61.5]
[1764559538721,24.26046706,127.27,127.22,61.5]
[1764559538892,24.26046706,127.27,127.19,61.5]
[1764559538893,4.45160306,127.23,127.19,61.5]
[1764559539093,7.95160306,127.22,127.17,7.95160306]
[1764559539290,4.45160306,127.21,127.17,11.3633448]
[1764559539490,5.13160306,127.21,127.17,3.5]
[1764559539800,0.68,127.21,127.18,4.45160306]
[1764559539993,3.5,127.22,127.19,4.45160306]
[1764559540193,0.68,127.21,127.19,4.45160306]
[1764559540715,4.18,127.22,127.19,4.45160306]
[1764559540915,8.54046089,127.22,127.19,4.45160306]
[1764559541117,0.68,127.21,127.19,4.45160306]
[1764559541312,11.36046089,127.22,127.19,5.05160306]
[1764559541496,11.36046089,127.22,127.2,4.45160306]
[1764559541897,12.04046089,127.22,127.19,4.45160306]
[1764559543215,12.04046089,127.22,127.19,5.05160306]
[1764559543512,11.36046089,127.22,127.2,4.45160306]
[1764559543809,8.53939692,127.24,127.21,4.45160306]
[1764559544039,12.03939692,127.24,127.22,4.45160306]
[1764559544313,8.53939692,127.24,127.22,65.95160306]
[1764559544492,7.85939692,127.24,127.22,65.95160306]
[1764559544801,7.85939692,127.24,127.23,4.45160306]
[1764559545002,0.68,127.26,127.23,4.45160306]
[1764559545003,8.53810665,127.26,127.23,4.45160306]
[1764559545204,8.53810665,127.26,127.24,4.45160306]
[1764559546012,0.68,127.25,127.23,4.45160306]
[1764559547014,0.68,127.25,127.23,12.31137172]
[1764559547216,0.68,127.25,127.24,4.45160306]
[1764559547417,7.85810665,127.26,127.24,4.45160306]
[1764559547716,8.53810665,127.26,127.24,4.45160306]
[1764559548420,40.50139151,127.29,127.25,2.8484831]
[1764559548421,0.68,127.28,127.25,2.8484831]
[1764559548612,0.1,127.29,127.26,2.8484831]
[1764559548613,4.28,127.29,127.26,2.8484831]
[1764559549100,0.68,127.28,127.26,2.8484831]
[1764559549498,11.45632422,127.29,127.26,2.8484831]
[1764559549697,0.1,127.29,127.28,2.8484831]
[1764559550115,0.1,127.29,127.28,3.4484831]
[1764559550519,0.1,127.29,127.28,8.50494801]
[1764559551599,0.1,127.29,127.28,7.90494801]
[1764559551809,0.1,127.29,127.27,77.26200732]
[1764559551810,0.78,127.29,127.27,77.26200732]
[1764559551997,0.78,127.29,127.28,7.90494801]
[1764559552201,0.1,127.29,127.28,7.90494801]
[1764559555524,0.1,127.29,127.28,15.76164191]
[1764559555707,0.1,127.29,127.28,16.36164191]
[1764559556523,0.1,127.29,127.28,15.76164191]
[1764559560135,0.1,127.3,127.29,61.4]
[1764559560727,0.1,127.3,127.29,69.30494801]
[1764559561431,0.1,127.3,127.29,173.60494801]
[1764559561819,0.1,127.3,127.29,181.46102468]
[1764559562433,0.1,127.3,127.29,180.86102468]
[1764559565838,0.1,127.3,127.29,172.95607667]
[1764559566038,0.78,127.3,127.29,61.4]
[1764559567528,0.78,127.3,127.25,69.30494801]
[1764559567711,0.78,127.3,127.24,35.41119329]
[1764559567712,15.76162998,127.29,127.24,35.41119329]
[1764559567908,15.76162998,127.29,127.24,15.76411179]
[1764559568110,12.08494801,127.28,127.23,15.76448531]
[1764559568313,7.90494801,127.27,127.23,7.8595373]
[1764559568536,0.68,127.27,127.23,15.76448531]
[1764559568730,0.68,127.26,127.23,15.76448531]
[1764559569432,0.68,127.26,127.24,7.90494801]
[1764559570527,7.85670853,127.28,127.24,7.90494801]
[1764559570730,0.68,127.27,127.25,7.90494801]
[1764559571634,0.68,127.27,127.25,15.76342477]
[1764559571937,0.1,127.3,127.26,8.50494801]
[1764559572232,0.1,127.3,127.28,7.90494801]
[1764559572439,0.1,127.3,127.28,2.84667438]
[1764559572822,0.78,127.3,127.28,2.84667438]
[1764559573626,0.78,127.3,127.28,7.8566939]
[1764559573828,0.78,127.3,127.27,10.7039856]
[1764559574229,0.78,127.3,127.27,7.85731122]
[1764559574416,0.78,127.3,127.28,2.84667438]
[1764559576030,0.78,127.3,127.27,10.70380037]
[1764559576238,0.78,127.3,127.27,7.85712599]
[1764559577218,0.78,127.3,127.27,10.70380037]
[1764559577917,0.78,127.3,127.27,72.20380037]
[1764559578746,0.1,127.3,127.29,2.84667438]
[1764559578958,0.1,127.3,127.29,64.34667438]
[1764559579748,0.1,127.3,127.29,64.94667438]
[1764559579918,0.1,127.3,127.29,64.34667438]
[1764559580124,0.1,127.3,127.29,72.20275105]
[1764559580849,0.1,127.3,127.29,69.35607667]
[1764559583949,0.78,127.3,127.29,61.5]
[1764559588128,3.62667438,127.3,127.29,61.5]
[1764559588646,0.78,127.3,127.29,61.5]
[1764559589029,11.48213392,127.3,127.29,61.5]
[1764559589230,0.78,127.3,127.26,7.85775346]
[1764559589433,0.79,127.3,127.26,72.80442784]
[1764559590339,3.63667438,127.3,127.26,72.20442784]
[1764559590845,0.69,127.29,127.26,69.35775346]
[1764559592851,3.53667438,127.29,127.26,69.35775346]
[1764559593248,0.69,127.28,127.26,69.35775346]
[1764559596654,0.69,127.28,127.26,61.5]
[1764559596865,3.53667438,127.28,127.26,61.5]
[1764559597360,0.69,127.27,127.26,61.5]
[1764559597544,0.69,127.27,127.24,61.5]
[1764559597545,3.53667438,127.27,127.24,61.5]
[1764559597745,2.84667438,127.26,127.24,61.5]
[1764559597940,2.84667438,127.25,127.21,69.36073835]
[1764559598142,2.84667438,127.22,127.18,0.6]
[1764559598348,2.84667438,127.22,127.18,6.34667438]
[1764559598542,3.53667438,127.22,127.18,4.1]
[1764559598749,0.69,127.22,127.18,34.46622275]
[1764559599360,3.53667438,127.22,127.18,34.46622275]
[1764559599562,0.69,127.22,127.18,34.46622275]
[1764559601361,0.69,127.25,127.21,2.84667438]
[1764559601753,0.69,127.25,127.21,3.44667438]
[1764559601955,0.69,127.25,127.2,3.5]
[1764559602259,0.69,127.25,127.21,3.44667438]
[1764559602471,0.69,127.25,127.21,11.30720172]
[1764559604263,11.39539314,127.25,127.21,7.86052734]
[1764559604451,0.69,127.24,127.21,7.86052734]
[1764559604647,0.69,127.24,127.21,69.36052734]
[1764559607160,0.69,127.24,127.21,72.20720172]
[1764559608443,28.18721227,127.29,127.24,61.5]
[1764559608661,28.18721227,127.29,127.25,4.45131647]
[1764559608662,8.54607667,127.29,127.25,4.45131647]
[1764559608963,0.69,127.28,127.25,4.45131647]
[1764559610964,0.69,127.28,127.25,12.30942347]
[1764559611180,13.09704873,127.3,127.25,12.30942347]
[1764559611468,0.1,127.3,127.26,4.45131647]
[1764559611773,0.69,127.29,127.26,5.05131647]
[1764559612862,0.79,127.3,127.27,7.85731122]
[1764559613054,5.24131647,127.3,127.27,61.5]
[1764559613454,0.69,127.29,127.27,61.5]
[1764559613755,4.45131647,127.28,127.27,61.5]
[1764559613960,4.45131647,127.28,127.24,69.35888843]
[1764559614170,5.14131647,127.27,127.24,69.35888843]
[1764559614371,0.69,127.27,127.24,69.35888843]
[1764559615477,8.54749479,127.27,127.24,61.5]
[1764559615668,8.54749479,127.27,127.21,61.5]
[1764559615669,4.45131647,127.25,127.21,61.5]
[1764559615853,4.45131647,127.24,127.21,61.5]
[1764559616050,4.45131647,127.23,127.18,69.36269536]
[1764559616267,4.45131647,127.22,127.18,65.95131647]
[1764559616456,5.17131647,127.22,127.18,61.5]
[1764559616650,5.17131647,127.21,127.18,61.5]
[1764559616866,5.17131647,127.21,127.17,16.41455121]
[1764559617477,5.17131647,127.21,127.17,4.1]
[1764559617770,0.72,127.2,127.17,3.5]
[1764559617981,0.72,127.2,127.17,72.86303215]
[1764559618858,0.72,127.2,127.18,4.45131647]
[1764559619057,0.72,127.2,127.18,12.31412823]
[1764559619875,0.72,127.2,127.18,4.45131647]
[1764559620668,0.72,127.2,127.17,65.95131647]
[1764559620858,0.72,127.2,127.17,4.45131647]
[1764559621058,0.72,127.2,127.18,4.45131647]
[1764559622358,8.58194879,127.2,127.18,4.45131647]
[1764559622855,0.72,127.19,127.18,4.45131647]
[1764559623057,7.86101721,127.21,127.17,4.45131647]
[1764559623254,7.85978149,127.23,127.2,4.45131647]
[1764559623472,0.72,127.22,127.2,61.5]
[1764559623665,0.72,127.22,127.2,65.95131647]
[1764559624479,0.72,127.22,127.2,61.5]
[1764559624873,8.58059212,127.22,127.2,61.5]
[1764559625353,0.72,127.21,127.2,61.5]
[1764559626785,7.85978149,127.23,127.2,65.95131647]
[1764559626960,0.72,127.22,127.2,65.95131647]
[1764559627158,8.57978149,127.23,127.2,65.95131647]
[1764559627364,8.57978149,127.23,127.21,4.45131647]
[1764559627584,0.72,127.24,127.22,4.45131647]
[1764559627784,7.85911019,127.25,127.23,4.45131647]
[1764559627992,0.72,127.24,127.23,4.45131647]
[1764559628163,0.72,127.24,127.2,8.46122671]
[1764559628485,0.72,127.24,127.2,12.31254318]
[1764559628658,0.72,127.24,127.2,7.86122671]
[1764559628862,8.57925055,127.24,127.2,12.31254318]
[1764559629363,0.72,127.23,127.2,12.31254318]
[1764559630160,0.72,127.23,127.2,4.45131647]
[1764559630363,0.72,127.23,127.19,15.81336497]
[1764559630565,4.22,127.23,127.19,12.31336497]
[1764559630982,4.22,127.23,127.17,3.5]
[1764559630983,4.45131647,127.22,127.17,3.5]
[1764559631184,0.72,127.22,127.19,4.45131647]
[1764559631492,0.72,127.21,127.18,4.45131647]
[1764559632190,0.72,127.22,127.19,4.45131647]
[1764559633381,0.72,127.22,127.19,12.31336603]
[1764559633689,8.5804665,127.22,127.19,4.45131647]
[1764559634070,8.5804665,127.22,127.19,12.91353254]
[1764559634584,8.5804665,127.22,127.19,73.81353254]
[1764559634777,0.72,127.22,127.19,73.81353254]
[1764559635581,8.58061093,127.22,127.19,65.95131647]
[1764559636768,0.72,127.21,127.18,61.5]
[1764559636974,0.72,127.21,127.18,73.8141727]
[1764559637390,0.72,127.21,127.18,61.5]
[1764559638091,0.72,127.21,127.18,65.95131647]
[1764559638676,7.86163522,127.2,127.18,61.5]
[1764559639193,0.72,127.19,127.18,61.5]
[1764559639366,0.72,127.19,127.17,65.95131647]
[1764559639570,8.58115484,127.21,127.18,4.45131647]
[1764559639771,0.72,127.2,127.18,4.45131647]
[1764559642190,8.58163823,127.2,127.18,4.45131647]
[1764559643292,8.58163823,127.2,127.18,65.95131647]
[1764559646492,0.72,127.2,127.18,65.95131647]
[1764559647895,0.72,127.2,127.18,61.5]
[1764559648096,0.72,127.2,127.18,65.95131647]
[1764559649600,0.72,127.2,127.18,61.5]
[1764559649803,0.72,127.2,127.18,65.95131647]
[1764559650004,0.72,127.2,127.18,61.5]
[1764559650187,0.72,127.2,127.18,65.95131647]
[1764559652006,16.308864,127.23,127.19,4.45131647]
[1764559652304,0.7,127.22,127.19,65.95131647]
[1764559653778,8.56048918,127.22,127.19,65.95131647]
[1764559654204,0.7,127.21,127.19,65.95131647]
[1764559655981,8.56105713,127.21,127.19,61.5]
[1764559656181,0.7,127.2,127.19,61.5]
[1764559656381,0.7,127.2,127.17,65.95131647]
[1764559657702,0.7,127.2,127.17,66.55131647]
[1764559658006,8.56173976,127.2,127.17,65.95131647]
[1764559659096,7.86173976,127.2,127.17,65.95131647]
[1764559659402,0.7,127.19,127.17,65.95131647]
[1764559660203,4.45131647,127.18,127.16,0.2]
[1764559660594,5.15131647,127.17,127.16,0.2]
[1764559660793,13.96126139,127.17,127.13,0.2]
[1764559661098,4.45131647,127.14,127.13,0.2]
[1764559661303,13.96126139,127.14,127.13,0.2]
[1764559662309,21.82660667,127.14,127.13,0.2]
[1764559663084,23.1617956,127.16,127.13,0.2]
[1764559663085,27.52644868,127.16,127.13,0.2]
[1764559663286,16.308864,127.17,127.14,4.45131647]
[1764559663588,28.22094263,127.18,127.15,4.45131647]
[1764559664193,8.56335841,127.18,127.15,4.45131647]
[1764559664611,7.86335841,127.18,127.16,4.45131647]
[1764559665200,11.36251283,127.19,127.16,4.45131647]
[1764559665392,12.06251283,127.19,127.16,4.45131647]
[1764559665809,11.36251283,127.19,127.16,4.45131647]
[1764559666114,12.06251283,127.19,127.16,4.45131647]
[1764559666308,12.06251283,127.19,127.16,65.95131647]
[1764559668112,12.06251283,127.19,127.16,66.67131647]
[1764559668292,12.06251283,127.19,127.16,65.95131647]
[1764559668488,12.06171791,127.2,127.17,4.45131647]
[1764559668694,12.06171791,127.2,127.17,65.95131647]
[1764559669626,12.06171791,127.2,127.17,4.45131647]
[1764559669993,12.06171791,127.2,127.17,5.17131647]
[1764559670195,3.5,127.2,127.18,4.45131647]
[1764559670393,3.5,127.2,127.19,2.85114641]
[1764559670609,3.5,127.22,127.19,3.57114641]
[1764559670825,4.2,127.22,127.19,2.85114641]
[1764559671123,0.7,127.21,127.19,2.85114641]
[1764559672029,8.56126844,127.21,127.18,2.85114641]
[1764559672321,2.85114641,127.19,127.13,61.7]
[1764559672618,2.85114641,127.17,127.13,3.05114641]
[1764559672826,2.85114641,127.17,127.13,0.2]
[1764559673026,0.7,127.16,127.13,0.2]
[1764559673317,0.7,127.16,127.13,8.0659592]
[1764559673526,28.37176566,127.18,127.13,11.63710561]
[1764559673824,0.7,127.17,127.13,11.63710561]
[1764559674426,3.55114641,127.17,127.13,0.2]
[1764559674928,0.7,127.16,127.13,0.2]
[1764559675830,8.5646395,127.16,127.13,0.2]
[1764559676014,3.5,127.15,127.13,0.2]
[1764559676199,4.17,127.15,127.13,0.2]
[1764559676404,0.67,127.14,127.13,0.2]
[1764559676732,3.52114641,127.14,127.13,0.2]
[1764559677218,12.33109133,127.14,127.13,0.2]